[Event "-chT Youth Countries 2019"]
[Site "Wuerzburg"]
[Date "2019.10.04"]
[Round "5.2"]
[White "Knuedel, Torben"]
[Black "Köhler, Lukas"]
[Result "1-0"]
[ECO "B01"]
[WhiteElo "2193"]
[BlackElo "2040"]
[Annotator "NA"]
[PlyCount "67"]
[EventDate "2019.10.02"]
[EventType "team-tourn"]
[EventRounds "7"]
[EventCountry "GER"]
[SourceTitle "playchess.com"]
[Source "ChessBase"]
[SourceQuality "1"]
[WhiteTeam "Niedersachsen"]
[BlackTeam "Bayern 2"]
[TimeControl "40/5400+30:1800+30"]

1. e4 {[%emt 0:00:00]} d5 {[%emt 0:00:00]} 2. exd5 {[%emt 0:00:00]} Qxd5 {[%emt 0:00:00]} 3. Nc3 {[%emt 0:00:00]} Qd6 {[%emt 0:00:00]} 4. d4 {[%emt 0:01:05]} c6 {[%emt 0:02:03]} 5. Nf3 {[%emt 0:01:04]} Bg4 {[%emt 0:00:31]} 6. Be2 {[%emt 0:00:44]} e6 {[%emt 0:05:37]} 7. h3 {[%emt 0:01:00]} Bxf3 {[%emt 0:00:35]} 8. Bxf3 {[%emt 0:00:02]} Nf6 {[%emt 0:01:15]} 9. Be3 {[%emt 0:01:52]} Nbd7 {[%emt 0:01:56]} 10. O-O {[%emt 0:03:00]} Be7 {[%emt 0:03:31]} 11. Qe2 {[%emt 0:08:01]} O-O {[%emt 0:01:27]} 12. Rad1 {[%emt 0:03:38]} Nb6 {[%emt 0:03:42]} 13. Bc1 {[%emt 0:02:07]} Rad8 {[%emt 0:04:33]} 14. Ne4 {[%emt 0:01:11]} Nxe4 {[%emt 0:01:36]} 15. Bxe4 {[%emt 0:01:01]} Bf6 {[%emt 0:05:27]} 16. Rfe1 {[%emt 0:03:40]} g6 {[%emt 0:06:20]} 17. Qf3 {[%emt 0:06:19]} Bg7 {[%emt 0:05:50]} 18. c3 {[%emt 0:00:16]} Qe7 {[%emt 0:04:43]} 19. Bc2 {[%emt 0:01:42]} Rfe8 {[%emt 0:02:21]} 20. Bb3 {[%emt 0:01:56]} Qf6 {[%emt 0:10:17]} 21. Qg4 {[%emt 0:03:14]} h5 {[%emt 0:02:58]} 22. Qg3 {[%emt 0:01:40]} Qe7 {[%emt 0:07:22]} 23. Rd3 {[%emt 0:06:17]} Nd5 {[%emt 0:09:38]} 24. Rf3 {[%emt 0:05:45]} Qc7 {[%emt 0:04:09]} 25. Qxc7 {[%emt 0:07:28]} Nxc7 {[%emt 0:00:10]} 26. Bg5 {[%emt 0:00:38]} Rd7 {[%emt 0:01:27]} 27. Re4 {[%emt 0:02:17]} Kh7 {[%emt 0:03:04]} 28. g4 {[%emt 0:04:39]} Bh6 {[%emt 0:06:17]} 29. Bf6 {[%emt 0:02:10]} hxg4 {[%emt 0:01:57]} 30. hxg4 {[%emt 0:00:55]} Nd5 {[%emt 0:01:40]} 31. g5 {[%emt 0:02:53]} Nxf6 {[%emt 0:04:25]} 32. gxf6 {[%emt 0:00:00]} g5 {[%emt 0:00:38]} 33. Bc2 {[%emt 0:01:00]} Rd5 {[%emt 0:00:30]} 34. Rxe6+ {[%emt 0:00:17] normal} 1-0

[Event "-chT Youth Countries 2019"]
[Site "Wuerzburg"]
[Date "2019.10.04"]
[Round "5.2"]
[White "Ratay, Meike"]
[Black "Karsay, Pascal"]
[Result "0-1"]
[ECO "C68"]
[WhiteElo "2032"]
[BlackElo "2276"]
[Annotator "NA"]
[PlyCount "68"]
[EventDate "2019.10.02"]
[EventType "team-tourn"]
[EventRounds "7"]
[EventCountry "GER"]
[SourceTitle "playchess.com"]
[Source "ChessBase"]
[SourceQuality "1"]
[WhiteTeam "Thüringen"]
[BlackTeam "Rheinland-Pfalz"]
[TimeControl "40/5400+30:1800+30"]

1. e4 {[%emt 0:00:00]} e5 {[%emt 0:00:00]} 2. Nf3 Nc6 3. Bb5 {[%emt 0:00:18]} a6 {[%emt 0:00:17]} 4. Bxc6 {[%emt 0:00:04]} dxc6 {[%emt 0:00:11]} 5. O-O {[%emt 0:00:07]} Bg4 {[%emt 0:00:12]} 6. h3 {[%emt 0:00:08]} h5 {[%emt 0:00:05]} 7. d3 {[%emt 0:00:12]} Qf6 {[%emt 0:00:11]} 8. Nbd2 {[%emt 0:00:06]} g5 {[%emt 0:00:06]} 9. Re1 {[%emt 0:03:07]} Be6 {[%emt 0:00:23]} 10. d4 {[%emt 0:03:29]} g4 {[%emt 0:00:17]} 11. Nxe5 {[%emt 0:03:37]} O-O-O {[%emt 0:00:10]} 12. c3 {[%emt 0:06:59]} gxh3 {[%emt 0:00:10]} 13. Qf3 {[%emt 0:08:45]} hxg2 {[%emt 0:00:08]} 14. Qxf6 {[%emt 0:04:50]} Nxf6 {[%emt 0:05:19]} 15. Kxg2 {[%emt 0:00:17]} Bd6 {[%emt 0:07:48]} 16. Ndc4 {[%emt 0:16:09]} Rdg8+ {[%emt 0:00:28]} 17. Kf3 {[%emt 0:12:54]} h4 {[%emt 0:08:21]} 18. Bf4 {[%emt 0:04:32]} h3 {[%emt 0:22:24]} 19. Nxd6+ {[%emt 0:07:47]} cxd6 {[%emt 0:00:07]} 20. Nd3 {[%emt 0:00:20]} d5 {[%emt 0:09:11]} 21. e5 {[%emt 0:04:26]} Nh5 {[%emt 0:01:17]} 22. Bh2 {[%emt 0:06:48]} Rg2 {[%emt 0:03:57]} 23. Rh1 {[%emt 0:00:40]} Bf5 {[%emt 0:00:50]} 24. Nc5 {[%emt 0:02:34]} Ng7 {[%emt 0:07:55]} 25. Rag1 {[%emt 0:04:59]} b6 {[%emt 0:01:55]} 26. Nxa6 {[%emt 0:01:11]} Rh4 {[%emt 0:11:27]} 27. Nb4 {[%emt 0:04:25]} c5 {[%emt 0:05:16]} 28. dxc5 {[%emt 0:01:04]} bxc5 {[%emt 0:00:08]} 29. Nc6 {[%emt 0:00:50]} Bg4+ {[%emt 0:09:31]} 30. Ke3 {[%emt 0:00:35]} Nf5+ {[%emt 0:00:29]} 31. Kd3 {[%emt 0:00:27]} Rxf2 {[%emt 0:01:08]} 32. c4 {[%emt 0:02:06]} Be2+ {[%emt 0:01:13]} 33. Kc3 {[%emt 0:00:18]} Rxc4+ {[%emt 0:00:16]} 34. Kb3 {[%emt 0:00:23]} Rf3# {normal} 0-1

[Event "-chT Youth Countries 2019"]
[Site "Wuerzburg"]
[Date "2019.10.04"]
[Round "5.3"]
[White "Kololli, Martin"]
[Black "Pallas, Sebastian"]
[Result "1-0"]
[ECO "B22"]
[WhiteElo "2310"]
[BlackElo "2291"]
[Annotator "NA"]
[PlyCount "80"]
[EventDate "2019.10.02"]
[EventType "team-tourn"]
[EventRounds "7"]
[EventCountry "GER"]
[SourceTitle "playchess.com"]
[Source "ChessBase"]
[SourceQuality "1"]
[WhiteTeam "Schleswig-Holstein"]
[BlackTeam "Sachsen-Anhalt"]
[TimeControl "40/5400+30:1800+30"]

1. e4 {[%emt 0:00:00]} c5 {[%emt 0:00:00]} 2. c3 {[%emt 0:00:00]} Nf6 {[%emt 0:00:00]} 3. e5 {[%emt 0:00:00]} Nd5 {[%emt 0:00:08]} 4. d4 {[%emt 0:00:00]} cxd4 {[%emt 0:00:14]} 5. Nf3 {[%emt 0:00:00]} d6 {[%emt 0:02:04]} 6. Bc4 {[%emt 0:00:32]} e6 {[%emt 0:00:33]} 7. cxd4 {[%emt 0:00:08]} Nc6 {[%emt 0:00:38]} 8. O-O {[%emt 0:01:04]} Be7 {[%emt 0:02:03]} 9. exd6 {[%emt 0:00:11]} Bxd6 {[%emt 0:05:18]} 10. Nc3 {[%emt 0:01:43]} Nxc3 {[%emt 0:08:07]} 11. bxc3 {[%emt 0:00:32]} O-O {[%emt 0:00:29]} 12. Re1 {[%emt 0:18:00]} Qa5 {[%emt 0:12:58]} 13. Qc2 {[%emt 0:05:24]} h6 {[%emt 0:13:17]} 14. Bd2 {[%emt 0:02:01]} Qh5 {[%emt 0:08:38]} 15. Qe4 {[%emt 0:07:28]} Ne7 {[%emt 0:04:39]} 16. Rab1 {[%emt 0:07:30]} Bd7 {[%emt 0:03:57]} 17. Bd3 {[%emt 0:03:03]} f5 {[%emt 0:05:39]} 18. Qe2 {[%emt 0:01:25]} b6 {[%emt 0:06:55]} 19. Bb5 {[%emt 0:08:27]} Bc8 {[%emt 0:00:08]} 20. Ne5 {[%emt 0:00:53]} Qxe2 {[%emt 0:00:14]} 21. Rxe2 {[%emt 0:00:06]} Bxe5 {[%emt 0:05:33]} 22. Rxe5 {[%emt 0:00:19]} Kf7 {[%emt 0:01:27]} 23. Bc4 {[%emt 0:03:56]} Rd8 {[%emt 0:00:28]} 24. Rbe1 {[%emt 0:00:49]} Nd5 {[%emt 0:00:06]} 25. Bd3 {[%emt 0:02:06]} Nf6 {[%emt 0:01:20]} 26. Bc2 {[%emt 0:04:05]} Rd5 {[%emt 0:08:17]} 27. R5e2 {[%emt 0:04:20]} Rd6 {[%emt 0:01:43]} 28. Bb3 {[%emt 0:05:04]} Bd7 {[%emt 0:03:50]} 29. Bf4 {[%emt 0:01:46]} Rc6 {[%emt 0:00:02]} 30. c4 {[%emt 0:00:40]} Re8 {[%emt 0:01:21]} 31. f3 {[%emt 0:06:44]} Rcc8 {[%emt 0:00:40]} 32. d5 {[%emt 0:01:17]} exd5 {[%emt 0:01:55]} 33. cxd5 {[%emt 0:00:15]} g5 {[%emt 0:00:14]} 34. Bd2 {[%emt 0:03:06]} a5 {[%emt 0:01:36]} 35. d6+ {[%emt 0:00:54]} Kg6 {[%emt 0:00:09]} 36. Re7 {[%emt 0:00:08]} Rxe7 {[%emt 0:00:22]} 37. Rxe7 {[%emt 0:01:24]} f4 {[%emt 0:00:06]} 38. Bf7+ {[%emt 0:03:14]} Kf5 {[%emt 0:00:08]} 39. g4+ {[%emt 0:01:14]} fxg3 {[%emt 0:00:03]} 40. hxg3 {[%emt 0:00:08]} g4 {[%emt 0:02:24] normal} 1-0

[Event "-chT Youth Countries 2019"]
[Site "Wuerzburg"]
[Date "2019.10.04"]
[Round "5.3"]
[White "Weber, Samuel"]
[Black "Wu, Luka"]
[Result "1-0"]
[ECO "B20"]
[WhiteElo "2288"]
[BlackElo "2117"]
[Annotator "NA"]
[PlyCount "95"]
[EventDate "2019.10.02"]
[EventType "team-tourn"]
[EventRounds "7"]
[EventCountry "GER"]
[SourceTitle "playchess.com"]
[Source "ChessBase"]
[SourceQuality "1"]
[WhiteTeam "Hessen"]
[BlackTeam "Baden 1"]
[TimeControl "40/5400+30:1800+30"]

1. e4 {[%emt 0:00:00]} c5 {[%emt 0:00:00]} 2. c4 {[%emt 0:00:00]} Nc6 {[%emt 0:05:07]} 3. g3 {[%emt 0:00:20]} g6 {[%emt 0:01:27]} 4. Bg2 {[%emt 0:01:02]} Bg7 {[%emt 0:00:09]} 5. Ne2 {[%emt 0:00:24]} e6 {[%emt 0:00:21]} 6. Nbc3 {[%emt 0:00:58]} Nge7 {[%emt 0:00:28]} 7. O-O {[%emt 0:00:10]} O-O {[%emt 0:00:37]} 8. Rb1 {[%emt 0:00:20]} Rb8 {[%emt 0:03:06]} 9. d3 {[%emt 0:01:53]} d6 {[%emt 0:00:50]} 10. Be3 {[%emt 0:03:16]} a6 {[%emt 0:00:26]} 11. a4 {[%emt 0:00:44]} Qc7 {[%emt 0:01:36]} 12. Qd2 {[%emt 0:03:45]} Rd8 {[%emt 0:04:01]} 13. b3 {[%emt 0:02:22]} b6 {[%emt 0:00:47]} 14. d4 {[%emt 0:03:29]} e5 {[%emt 0:02:09]} 15. dxe5 {[%emt 0:03:23]} dxe5 {[%emt 0:00:14]} 16. Nd5 {[%emt 0:00:17]} Nxd5 {[%emt 0:01:12]} 17. cxd5 {[%emt 0:05:05]} Nd4 {[%emt 0:00:27]} 18. Nxd4 {[%emt 0:10:19]} cxd4 {[%emt 0:00:48]} 19. Bh6 {[%emt 0:00:06]} Qd6 {[%emt 0:05:21]} 20. Bxg7 {[%emt 0:09:51]} Kxg7 {[%emt 0:00:06]} 21. f4 {[%emt 0:00:10]} f6 {[%emt 0:00:21]} 22. Rf2 {[%emt 0:11:36]} Bd7 {[%emt 0:00:14]} 23. Rbf1 {[%emt 0:03:45]} Rf8 {[%emt 0:00:44]} 24. h4 {[%emt 0:06:03]} b5 {[%emt 0:04:54]} 25. a5 {[%emt 0:16:45]} b4 {[%emt 0:01:11]} 26. h5 {[%emt 0:00:03]} Rbc8 {[%emt 0:05:03]} 27. h6+ {[%emt 0:01:45]} Kg8 {[%emt 0:01:28]} 28. fxe5 {[%emt 0:04:33]} Qxe5 {[%emt 0:07:32]} 29. Qf4 {[%emt 0:00:54]} Bb5 {[%emt 0:02:10]} 30. Qxe5 {[%emt 0:07:00]} fxe5 {[%emt 0:00:06]} 31. Bh3 {[%emt 0:00:05]} Bxf1 {[%emt 0:02:05]} 32. Be6+ {[%emt 0:00:06]} Kh8 {[%emt 0:00:21]} 33. Bxc8 {[%emt 0:00:03]} Rxc8 {[%emt 0:00:52]} 34. Rxf1 {[%emt 0:01:09]} Kg8 {[%emt 0:05:26]} 35. Rf3 {[%emt 0:04:33]} d3 {[%emt 0:12:15]} 36. Kf2 {[%emt 0:01:12]} Rc2+ {[%emt 0:00:30]} 37. Ke3 {[%emt 0:00:30]} d2 {[%emt 0:00:45]} 38. Ke2 {[%emt 0:00:07]} Rc3 {[%emt 0:02:04]} 39. Rxc3 {[%emt 0:00:24]} bxc3 {[%emt 0:00:05]} 40. b4 {[%emt 0:00:04]} Kf7 {[%emt 0:08:49]} 41. b5 {[%emt 0:30:36]} axb5 {[%emt 0:30:09]} 42. a6 {[%emt 0:00:13]} b4 {[%emt 0:00:04]} 43. a7 {[%emt 0:00:10]} b3 {[%emt 0:00:07]} 44. a8=Q {[%emt 0:00:46]} b2 {[%emt 0:00:11]} 45. Qb7+ {[%emt 0:01:02]} Kf6 {[%emt 0:00:05]} 46. Qb3 {[%emt 0:00:00]} Ke7 {[%emt 0:00:00]} 47. Qc2 {[%emt 0:00:00]} Kd6 {[%emt 0:00:00]} 48. Kd3 {[%emt 0:00:00] normal Kxd5} 1-0

[Event "-chT Youth Countries 2019"]
[Site "Wuerzburg"]
[Date "2019.10.04"]
[Round "5.3"]
[White "Richter, Nils"]
[Black "Tschernatsch, Johannes"]
[Result "1-0"]
[ECO "B90"]
[WhiteElo "2213"]
[BlackElo "2132"]
[Annotator "NA"]
[PlyCount "175"]
[EventDate "2019.10.02"]
[EventType "team-tourn"]
[EventRounds "7"]
[EventCountry "GER"]
[SourceTitle "playchess.com"]
[Source "ChessBase"]
[SourceQuality "1"]
[WhiteTeam "Württemberg"]
[BlackTeam "Brandenburg/Berlin"]
[TimeControl "40/5400+30:1800+30"]

1. e4 {[%emt 0:00:00]} c5 {[%emt 0:00:00]} 2. Nf3 {[%emt 0:00:00]} d6 {[%emt 0:00:00]} 3. d4 {[%emt 0:00:00]} cxd4 {[%emt 0:00:00]} 4. Nxd4 {[%emt 0:00:00]} Nf6 {[%emt 0:00:00]} 5. Nc3 {[%emt 0:00:07]} a6 {[%emt 0:00:00]} 6. Be3 {[%emt 0:00:41]} e5 {[%emt 0:00:12]} 7. Nb3 {[%emt 0:00:15]} Be7 {[%emt 0:01:16]} 8. f3 {[%emt 0:00:18]} Be6 {[%emt 0:01:06]} 9. Qd2 {[%emt 0:01:12]} O-O {[%emt 0:00:34]} 10. O-O-O {[%emt 0:00:36]} b5 {[%emt 0:00:28]} 11. g4 {[%emt 0:00:27]} Nbd7 {[%emt 0:02:04]} 12. Rg1 {[%emt 0:00:09]} b4 {[%emt 0:06:40]} 13. Nd5 {[%emt 0:00:06]} Bxd5 {[%emt 0:01:26]} 14. exd5 {[%emt 0:00:03]} Nb6 {[%emt 0:02:33]} 15. Na5 {[%emt 0:04:17]} Nfxd5 {[%emt 0:06:59]} 16. Nc6 {[%emt 0:00:14]} Qc7 {[%emt 0:03:52]} 17. Nxe7+ {[%emt 0:00:17]} Qxe7 {[%emt 0:00:40]} 18. Bxb6 {[%emt 0:00:24]} Nxb6 {[%emt 0:00:04]} 19. Qxd6 {[%emt 0:00:08]} Qg5+ {[%emt 0:01:34]} 20. Qd2 {[%emt 0:00:14]} Qe7 {[%emt 0:07:08]} 21. Qe3 {[%emt 0:12:11]} Qe6 {[%emt 0:02:11]} 22. Kb1 {[%emt 0:03:41]} a5 {[%emt 0:02:42]} 23. Bd3 {[%emt 0:03:46]} Rad8 {[%emt 0:04:27]} 24. Rge1 {[%emt 0:07:14]} Rfe8 {[%emt 0:00:43]} 25. Bb5 {[%emt 0:01:48]} Rxd1+ {[%emt 0:03:05]} 26. Rxd1 {[%emt 0:00:15]} Rc8 {[%emt 0:01:32]} 27. Ba6 {[%emt 0:07:22]} Ra8 {[%emt 0:09:33]} 28. Bb7 {[%emt 0:03:22]} Rb8 {[%emt 0:05:01]} 29. Qc5 {[%emt 0:01:13]} g6 {[%emt 0:10:03]} 30. Qc7 {[%emt 0:08:28]} Re8 {[%emt 0:06:12]} 31. b3 {[%emt 0:21:48]} Re7 {[%emt 0:01:57]} 32. Qb8+ {[%emt 0:02:00]} Kg7 {[%emt 0:01:58]} 33. Be4 {[%emt 0:01:34]} Rd7 {[%emt 0:04:15]} 34. Rxd7 {[%emt 0:01:08]} Nxd7 {[%emt 0:00:03]} 35. Qc7 {[%emt 0:00:33]} Nf6 {[%emt 0:03:15]} 36. Qxa5 {[%emt 0:04:04]} Qd6 {[%emt 0:00:41]} 37. Bd3 {[%emt 0:02:30]} Qd4 {[%emt 0:04:27]} 38. a3 {[%emt 0:03:19]} bxa3 {[%emt 0:00:27]} 39. Qxa3 {[%emt 0:00:29]} Nd5 {[%emt 0:01:54]} 40. Qa5 {[%emt 0:02:58]} Nb4 {[%emt 0:07:09]} 41. Qb5 {[%emt 0:37:02]} Qg1+ {[%emt 0:14:45]} 42. Bf1 {[%emt 0:00:00]} Qd4 {[%emt 0:00:10]} 43. Be2 {[%emt 0:00:00]} Qg1+ {[%emt 0:01:22]} 44. Bf1 {[%emt 0:00:00]} Qd4 {[%emt 0:03:48]} 45. Qc4 {[%emt 0:00:00]} Qd1+ {[%emt 0:00:18]} 46. Kb2 {[%emt 0:00:00]} Qxf3 {[%emt 0:00:31]} 47. Be2 {[%emt 0:00:00]} Qe3 {[%emt 0:00:47]} 48. h4 {[%emt 0:00:00]} h6 {[%emt 0:05:40]} 49. Ka3 {[%emt 0:00:00]} Nc6 {[%emt 0:00:47]} 50. Bd3 {[%emt 0:00:00]} Nd4 {[%emt 0:01:55]} 51. c3 {[%emt 0:00:00]} Ne6 {[%emt 0:00:25]} 52. b4 {[%emt 0:00:00]} Nf4 {[%emt 0:01:14]} 53. Be4 {[%emt 0:00:00]} Ne2 {[%emt 0:00:39]} 54. Kb3 {[%emt 0:00:00]} Nxc3 {[%emt 0:00:31]} 55. Bd3 {[%emt 0:00:00]} Ne2 {[%emt 0:00:21]} 56. Ka4 {[%emt 0:00:00]} Qa7+ {[%emt 0:00:32]} 57. Qa6 {[%emt 0:00:00]} Nc3+ {[%emt 0:00:58]} 58. Kb3 {[%emt 0:00:00]} Qxa6 {[%emt 0:01:57]} 59. Bxa6 {[%emt 0:00:00]} Nd5 {[%emt 0:01:21]} 60. Kc4 {[%emt 0:00:00]} Nc7 {[%emt 0:00:46]} 61. Bc8 {[%emt 0:00:00]} f5 {[%emt 0:02:37]} 62. g5 {[%emt 0:00:00]} hxg5 {[%emt 0:00:08]} 63. hxg5 {[%emt 0:00:00]} e4 {[%emt 0:01:07]} 64. Bd7 {[%emt 0:00:00]} Kf7 {[%emt 0:00:14]} 65. b5 {[%emt 0:00:00]} Na8 {[%emt 0:00:36]} 66. Bc6 {[%emt 0:00:00]} Nb6+ {[%emt 0:00:14]} 67. Kc5 {[%emt 0:00:00]} Na4+ {[%emt 0:00:18]} 68. Kb4 {[%emt 0:00:00]} Nb6 {[%emt 0:00:12]} 69. Kc5 {[%emt 0:00:00]} Na4+ {[%emt 0:00:02]} 70. Kd6 {[%emt 0:00:00]} e3 {[%emt 0:00:04]} 71. Bf3 {[%emt 0:00:00]} f4 {[%emt 0:01:01]} 72. Ke5 {[%emt 0:00:00]} Nb6 {[%emt 0:00:53]} 73. Kxf4 {[%emt 0:00:00]} Ke6 {[%emt 0:00:12]} 74. Bg4+ {[%emt 0:00:00]} Kd5 {[%emt 0:00:09]} 75. Kxe3 {[%emt 0:00:00]} Ke5 {[%emt 0:00:45]} 76. Bh3 {[%emt 0:00:00]} Nc4+ {[%emt 0:00:12]} 77. Kf3 {[%emt 0:00:00]} Nb6 {[%emt 0:00:15]} 78. Kg4 {[%emt 0:00:00]} Nd5 {[%emt 0:00:27]} 79. Bg2 {[%emt 0:00:22]} Ne3+ {[%emt 0:00:13]} 80. Kf3 {[%emt 0:00:02]} Nd5 {[%emt 0:00:28]} 81. Bh3 {[%emt 0:00:29]} Nb6 {[%emt 0:00:20]} 82. Kg3 {[%emt 0:00:20]} Kd4 {[%emt 0:01:16]} 83. Be6 {[%emt 0:02:15]} Ke5 {[%emt 0:00:27]} 84. Bb3 {[%emt 0:00:14]} Nc8 {[%emt 0:02:11]} 85. Bc2 {[%emt 0:00:50]} Ne7 {[%emt 0:00:04]} 86. b6 {[%emt 0:00:50]} Kd6 {[%emt 0:00:37]} 87. b7 {[%emt 0:00:08]} Kc7 {[%emt 0:00:06]} 88. Be4 {normal} 1-0

[Event "-chT Youth Countries 2019"]
[Site "Wuerzburg"]
[Date "2019.10.04"]
[Round "5.3"]
[White "Musiolik, David"]
[Black "Grund, Sebastian"]
[Result "1-0"]
[ECO "B34"]
[WhiteElo "2195"]
[BlackElo "2054"]
[Annotator "NA"]
[PlyCount "67"]
[EventDate "2019.10.02"]
[EventType "team-tourn"]
[EventRounds "7"]
[EventCountry "GER"]
[SourceTitle "playchess.com"]
[Source "ChessBase"]
[SourceQuality "1"]
[WhiteTeam "Rheinland-Pfalz"]
[BlackTeam "Thüringen"]
[TimeControl "40/5400+30:1800+30"]

1. e4 {[%emt 0:00:00]} c5 {[%emt 0:00:00]} 2. Nf3 {[%emt 0:00:00]} Nc6 {[%emt 0:00:00]} 3. d4 {[%emt 0:00:00]} cxd4 {[%emt 0:00:00]} 4. Nxd4 {[%emt 0:00:00]} g6 {[%emt 0:00:05]} 5. Nc3 {[%emt 0:00:00]} Bg7 {[%emt 0:00:10]} 6. Be3 {[%emt 0:00:15]} Nf6 {[%emt 0:00:08]} 7. Be2 {[%emt 0:00:11]} O-O {[%emt 0:00:16]} 8. Nb3 {[%emt 0:00:09]} d6 {[%emt 0:00:26]} 9. f4 {[%emt 0:00:13]} Bd7 {[%emt 0:07:20]} 10. Bf3 {[%emt 0:11:32]} Na5 {[%emt 0:01:09]} 11. e5 {[%emt 0:14:47]} Ne8 {[%emt 0:01:55]} 12. Nxa5 {[%emt 0:01:06]} Qxa5 {[%emt 0:00:08]} 13. Qd5 {[%emt 0:00:35]} Qc7 {[%emt 0:03:02]} 14. Qxb7 {[%emt 0:05:27]} Qxb7 {[%emt 0:00:16]} 15. Bxb7 {[%emt 0:00:05]} Rb8 {[%emt 0:00:08]} 16. Bd5 {[%emt 0:00:55]} dxe5 {[%emt 0:01:30]} 17. Bxa7 {[%emt 0:01:48]} Rc8 {[%emt 0:03:47]} 18. O-O-O {[%emt 0:05:59]} Bg4 {[%emt 0:05:12]} 19. Bf3 {[%emt 0:02:43]} Bxf3 {[%emt 0:02:23]} 20. gxf3 {[%emt 0:00:06]} Rc7 {[%emt 0:02:00]} 21. Bb8 {[%emt 0:01:34]} Rc5 {[%emt 0:07:07]} 22. Rd5 {[%emt 0:00:49]} Rxd5 {[%emt 0:03:17]} 23. Nxd5 {[%emt 0:00:03]} exf4 {[%emt 0:00:19]} 24. Nxe7+ {[%emt 0:01:02]} Kh8 {[%emt 0:00:26]} 25. Bxf4 {[%emt 0:00:20]} Nf6 {[%emt 0:00:34]} 26. Be5 {[%emt 0:06:19]} Re8 {[%emt 0:01:30]} 27. Bxf6 {[%emt 0:00:57]} Bxf6 {[%emt 0:00:06]} 28. Nd5 {[%emt 0:00:16]} Bg7 {[%emt 0:02:43]} 29. a4 {[%emt 0:12:28]} Ra8 {[%emt 0:01:40]} 30. b3 {[%emt 0:03:30]} Rb8 {[%emt 0:02:15]} 31. Kd2 {[%emt 0:02:04]} Bf8 {[%emt 0:01:26]} 32. Rb1 {[%emt 0:01:33]} Bd6 {[%emt 0:00:36]} 33. h3 {[%emt 0:00:41]} f5 {[%emt 0:03:12]} 34. b4 {[%emt 0:02:22] normal} 1-0

[Event "-chT Youth Countries 2019"]
[Site "Wuerzburg"]
[Date "2019.10.04"]
[Round "5.3"]
[White "Dahl, Christoph"]
[Black "Goldbeck, Lars"]
[Result "0-1"]
[ECO "B12"]
[WhiteElo "2178"]
[BlackElo "2203"]
[Annotator "NA"]
[PlyCount "128"]
[EventDate "2019.10.02"]
[EventType "team-tourn"]
[EventRounds "7"]
[EventCountry "GER"]
[SourceTitle "playchess.com"]
[Source "ChessBase"]
[SourceQuality "1"]
[WhiteTeam "Sachsen"]
[BlackTeam "Bayern 1"]
[TimeControl "40/5400+30:1800+30"]

1. e4 {[%emt 0:00:00]} c6 {[%emt 0:00:00]} 2. d4 {[%emt 0:00:00]} d5 {[%emt 0:00:00]} 3. e5 {[%emt 0:00:00]} c5 {[%emt 0:00:39]} 4. dxc5 {[%emt 0:00:34]} e6 {[%emt 0:00:06]} 5. Nf3 {[%emt 0:00:32]} Bxc5 {[%emt 0:00:39]} 6. Bd3 {[%emt 0:00:55]} Ne7 {[%emt 0:00:12]} 7. O-O {[%emt 0:01:02]} Nbc6 {[%emt 0:00:46]} 8. c3 {[%emt 0:01:24]} Ng6 {[%emt 0:02:14]} 9. Qe2 {[%emt 0:01:16]} Bd7 {[%emt 0:03:20]} 10. Bg5 {[%emt 0:00:49]} Qc7 {[%emt 0:00:32]} 11. Re1 {[%emt 0:00:44]} Rc8 {[%emt 0:09:11]} 12. Na3 {[%emt 0:04:50]} Bxa3 {[%emt 0:06:48]} 13. bxa3 {[%emt 0:00:01]} Na5 {[%emt 0:03:51]} 14. h4 {[%emt 0:02:41]} h6 {[%emt 0:02:07]} 15. Bd2 {[%emt 0:02:44]} Ne7 {[%emt 0:03:13]} 16. Nd4 {[%emt 0:03:06]} Nc4 {[%emt 0:02:56]} 17. Bc1 {[%emt 0:05:10]} Qa5 {[%emt 0:04:29]} 18. Bxc4 {[%emt 0:00:38]} Rxc4 {[%emt 0:01:12]} 19. Bb2 {[%emt 0:00:28]} Qd8 {[%emt 0:05:54]} 20. g3 {[%emt 0:03:33]} O-O {[%emt 0:02:09]} 21. Rac1 {[%emt 0:05:50]} a6 {[%emt 0:05:49]} 22. Nf3 {[%emt 0:05:26]} Bb5 {[%emt 0:01:12]} 23. Qc2 {[%emt 0:01:56]} Nf5 {[%emt 0:01:26]} 24. Qd1 {[%emt 0:01:40]} d4 {[%emt 0:13:41]} 25. Nxd4 {[%emt 0:06:35]} Nxd4 {[%emt 0:00:53]} 26. cxd4 {[%emt 0:00:02]} Rxc1 {[%emt 0:00:50]} 27. Qxc1 {[%emt 0:00:19]} Qd5 {[%emt 0:00:22]} 28. Qc5 {[%emt 0:00:10]} Qxa2 {[%emt 0:00:27]} 29. Bc3 {[%emt 0:01:54]} Bc6 {[%emt 0:01:26]} 30. Bb4 {[%emt 0:05:43]} Rd8 {[%emt 0:05:52]} 31. Qc3 {[%emt 0:01:12]} Qd5 {[%emt 0:01:15]} 32. f3 {[%emt 0:00:05]} b6 {[%emt 0:04:38]} 33. Rc1 {[%emt 0:00:55]} Bb7 {[%emt 0:00:23]} 34. Qe3 {[%emt 0:00:13]} Qxd4 {[%emt 0:09:25]} 35. Qxd4 {[%emt 0:00:12]} Rxd4 {[%emt 0:00:02]} 36. Kf2 {[%emt 0:00:11]} a5 {[%emt 0:00:25]} 37. Be1 {[%emt 0:00:06]} g5 {[%emt 0:05:06]} 38. hxg5 {[%emt 0:00:24]} hxg5 {[%emt 0:00:00]} 39. Rb1 {[%emt 0:03:20]} Rd3 {[%emt 0:02:07]} 40. Rxb6 {[%emt 0:00:11]} Bd5 {[%emt 0:01:46]} 41. f4 {[%emt 0:33:12]} Rxa3 {[%emt 0:31:04]} 42. fxg5 {[%emt 0:00:51]} Kg7 {[%emt 0:01:45]} 43. Ra6 {[%emt 0:00:55]} a4 {[%emt 0:00:00]} 44. Bb4 {[%emt 0:00:00]} Rf3+ {[%emt 0:00:00]} 45. Ke1 {[%emt 0:00:00]} Bb3 {[%emt 0:00:00]} 46. Be7 {[%emt 0:00:00]} Kg6 {[%emt 0:00:00]} 47. Ke2 {[%emt 0:00:00]} Rxg3 {[%emt 0:00:00]} 48. Ra8 {[%emt 0:00:00]} Kf5 {[%emt 0:00:00]} 49. Rf8 {[%emt 0:00:00]} a3 {[%emt 0:00:00]} 50. Rxf7+ {[%emt 0:00:00]} Ke4 {[%emt 0:00:00]} 51. Bxa3 {[%emt 0:00:00]} Bc4+ {[%emt 0:00:00]} 52. Kf2 {[%emt 0:00:00]} Rxa3 {[%emt 0:00:28]} 53. g6 {[%emt 0:00:00]} Ra8 {[%emt 0:00:08]} 54. g7 {[%emt 0:00:00]} Rg8 {[%emt 0:00:08]} 55. Kg3 {[%emt 0:00:00]} Kxe5 {[%emt 0:00:23]} 56. Kg4 {[%emt 0:00:00]} Kd6 {[%emt 0:01:14]} 57. Kg5 {[%emt 0:00:00]} e5 {[%emt 0:00:01]} 58. Ra7 {[%emt 0:00:00]} e4 {[%emt 0:01:43]} 59. Kf6 {[%emt 0:00:00]} e3 {[%emt 0:00:33]} 60. Re7 {[%emt 0:00:00]} e2 {[%emt 0:00:18]} 61. Re5 {[%emt 0:00:00]} Kd7 {[%emt 0:01:20]} 62. Re4 {[%emt 0:00:00]} Bd3 {[%emt 0:01:15]} 63. Re6 {[%emt 0:00:00]} Bb5 {[%emt 0:01:06]} 64. Re4 {[%emt 0:00:00]} Bd3 {[%emt 0:01:26] normal} 0-1